{"text_format":"1","workbook":"xlsx","n_sheets":1,"sheets":["experimental1"],"not_rendered":{"charts":0,"images":0,"macros":1,"external_links":1,"defined_names":0,"comments":0,"pivot_tables":0},"unopened":[],"bounds":{"document_bytes":16777216,"sheet_cells":100000,"rows_first":2000,"rows_last":500,"rows_between":2000,"halvings":0,"cell_chars":16384,"cell_head_chars":4096},"cells_cut":0,"cells_raw":0,"read":"whole","date_system":"1900"}

{"sheet":"experimental1","index":0,"n_rows":51,"n_cols":20,"rows_kept":51,"cut":false,"hidden":false,"merged":[]}
[null,"go",null,null,"go","slow","stop",null,"go_cumul","slow_cumul","stop_cumul",null,{"$f":"B1","v":"go"},{"$f":"B2","v":"slow"},{"$f":"B3","v":"stop"}]
[null,"slow",null,{"$f":"INDEX($B:$B,RANDBETWEEN(1,COUNTA($B:$B)))","v":"slow"},{"$f":"COUNTIF(D2,$B$1)","v":0},{"$f":"COUNTIF(D2,$B$2)","v":1},{"$f":"COUNTIF(D2,$B$3)","v":0},null,{"$f":"E2","v":0},{"$f":"F2","v":1},{"$f":"G2","v":0},null,3,3,3,null,null,"stop","slow","stop"]
[null,"stop",null,{"$f":"INDEX($B:$B,RANDBETWEEN(1,COUNTA($B:$B)))","v":"go"},{"$f":"COUNTIF(D3,$B$1)","v":1},{"$f":"COUNTIF(D3,$B$2)","v":0},{"$f":"COUNTIF(D3,$B$3)","v":0},null,{"$f":"I2+E3","v":1},{"$f":"J2+F3","v":1},{"$f":"K2+G3","v":0},null,7,7,7,null,null,"slow","slow","go"]
[null,null,null,"slow",0,1,0,null,{"$f":"I3+E4","v":1},{"$f":"J3+F4","v":2},{"$f":"K3+G4","v":0},null,10,10,10,null,null,"slow","go","stop"]
[null,null,null,"stop",0,0,1,null,1,2,1,null,null,null,null,null,null,"stop","go","go"]
[null,null,null,"stop",0,0,1,null,1,2,2,null,"This area is thresholds",null,null,null,null,"stop","stop","go"]
[null,null,null,"go",1,0,0,null,2,2,2,null,"for colors",null,null,null,null,"slow","go","go"]
[null,null,null,"go",1,0,0,null,3,2,2,null,null,null,null,null,null,"stop","stop","stop"]
[null,null,null,"stop",0,0,1,null,3,2,3,null,"Run in order:",null,null,null,null,"slow","stop","go"]
[null,null,null,"slow",0,1,0,null,3,3,3,null,"fontchange1",null,null,null,null,"slow","stop","stop"]
[null,null,null,"slow",0,1,0,null,3,4,3,null,"(makes size of words in",null,null,null,null,"stop","stop","stop"]
[null,null,null,"slow",0,1,0,null,3,5,3,null,"column D according to",null,null,null,null,"stop","stop","go"]
[null,null,null,"go",1,0,0,null,4,5,3,null,"their frequencies)",null,null,null,null,"stop","go","stop"]
[null,null,null,"stop",0,0,1,null,4,5,4,null,null,null,null,null,null,"stop","go","stop"]
[null,null,null,"stop",0,0,1,null,4,5,5,null,"pastetext2",null,null,null,null,"go","go","slow"]
[null,null,null,"go",1,0,0,null,5,5,5,null,"(puts column D in colums R",null,null,null,null,"go","go","stop"]
[null,null,null,"stop",0,0,1,null,5,5,6,null,"S, and T)",null,null,null,null,"slow","slow","slow"]
[null,null,null,"slow",0,1,0,null,5,6,6,null,null,null,null,null,null,"stop","slow"]
[null,null,null,"slow",0,1,0,null,5,7,6]
[null,null,null,"slow",0,1,0,null,5,8,6]
[null,null,null,"slow",0,1,0,null,5,9,6]
[null,null,null,"stop",0,0,1,null,5,9,7]
[null,null,null,"stop",0,0,1,null,5,9,8]
[null,null,null,"slow",0,1,0,null,5,10,8]
[null,null,null,"go",1,0,0,null,6,10,8]
[null,null,null,"slow",0,1,0,null,6,11,8]
[null,null,null,"stop",0,0,1,null,6,11,9]
[null,null,null,"stop",0,0,1,null,6,11,10]
[null,null,null,"slow",0,1,0,null,6,12,10]
[null,null,null,"slow",0,1,0,null,6,13,10]
[null,null,null,"slow",0,1,0,null,6,14,10]
[null,null,null,"go",1,0,0,null,7,14,10]
[null,null,null,"go",1,0,0,null,8,14,10]
[null,null,null,"go",1,0,0,null,9,14,10]
[null,null,null,"slow",0,1,0,null,9,15,10]
[null,null,null,"slow",0,1,0,null,9,16,10]
[null,null,null,"go",1,0,0,null,10,16,10]
[null,null,null,"stop",0,0,1,null,10,16,11]
[null,null,null,"slow",0,1,0,null,10,17,11]
[null,null,null,"go",1,0,0,null,11,17,11]
[null,null,null,"go",1,0,0,null,12,17,11]
[null,null,null,"go",1,0,0,null,13,17,11]
[null,null,null,"stop",0,0,1,null,13,17,12]
[null,null,null,"stop",0,0,1,null,13,17,13]
[null,null,null,"slow",0,1,0,null,13,18,13]
[null,null,null,"go",1,0,0,null,14,18,13]
[null,null,null,"slow",0,1,0,null,14,19,13]
[null,null,null,"stop",0,0,1,null,14,19,14]
[null,null,null,"go",1,0,0,null,15,19,14]
[null,null,null,"go",1,0,0,null,16,19,14]
[null,null,null,"stop",0,0,1,null,16,19,15]